Cogmind - Beta 11.1 @@@ ROGUE MODE // 2022.12.19 @ 23:24:31 Player: ILikeMonsters1890 Result: Destroyed by S-27 Virus with Autogun Performance ------------- Evolutions (6) 3000 Regions Visited (24) 4800 Robots Destroyed (182) 910 Value Destroyed (5969) 5969 Prototype IDs (46) 920 Alien Tech Used (0) 0 Bonus (4351) 4351 TOTAL SCORE: 19950 Bonus ------- High Alert Combat Kills 461 Follower Combat Kills 3064 Network Hubs Disabled 200 Aligned with FarCom 300 Met Imprinter 300 Met Warlord at Base 500 MAIN.C Attacked Warlord 500 Warlord Defense Kills 154 Built Enhanced Grunts 300 Met R17 at Cetus 500 Friendly Fire -1928 Cogmind --------- Core Integrity 0/1150 Matter 290/300 Energy 100/100 System Corruption 17% Temperature Cool (0) Movement Core (50) Location -4/Upper Caves Parts ------- > --- POWER (1) -------- (None) > --- PROPULSION (5) --- Myomer Leg > --- UTILITY (11) ----- Experimental Hacking Suite > --- WEAPON (2) ------- (None) > --- INVENTORY (5) ---- High-capacity Storage Unit Mini Grenade Launcher Enhanced Force Lance Peak State ------------ > --- POWER ------------ Reinforced Quantum Reactor > --- PROPULSION ------- Enhanced Flexi-carbon Leg Enhanced Flexi-carbon Leg Myomer Leg Myomer Leg Myomer Leg > --- UTILITY ---------- High-capacity Storage Unit Enhanced Optical Array Improved Signal Interpreter Improved Melee Analysis Suite Advanced Force Booster Advanced Reaction Control System Improved Phase Shifter Improved Medium Armor Plating Layered Medium Armor Plating Layered Medium Armor Plating Centrium Medium Armor Plating > --- WEAPON ----------- Enhanced Force Lance Enhanced Force Lance > --- INVENTORY -------- Neutrino Core Neutrino Core Flexi-carbon Leg Flexi-carbon Leg Flexi-carbon Leg Flexi-carbon Leg Flexi-carbon Leg High-capacity Storage Unit Advanced Sensor Array Improved Signal Interpreter Improved Melee Analysis Suite Centrium Medium Armor Plating Makeshift Hacking Suite Makeshift System Shield Corruption Screen Mini Grenade Launcher Field Lobotomy Kit RU-N14's Throwing Claymores v3 Chainsword Spear [Rating: 129] Favorites ----------- Power Fission Core Engine Heavy Deuterium Engine Power Core Fission Core Reactor Reinforced Quantum Reactor Propulsion Flexi-carbon Leg Leg Flexi-carbon Leg Wheel Wheel Hover Unit Aerolev Unit Utility Centrium Medium Armor Plating Device Seismic Detector Storage High-capacity Storage Unit Processor Improved Signal Interpreter Hackware Improved System Shield Protection Centrium Medium Armor Plating Weapon Chainsword Ballistic Gun Improved Assault Rifle Launcher Mini Grenade Launcher Special Weapon RU-N14's Throwing Claymores v3 Impact Weapon Mace Slashing Weapon Chainsword Piercing Weapon Enhanced Force Lance Build | -11 -10 -10 -10 -9 -8 -7 -7 -7 -7 -6 -6 -6 -6 -6 -6 -5 -5 -5 -5 -4 -4 -4 -4 -4 ------- Run | Scr Mat Min Exi Min Mat Fac Low Low Zio Pro Fac Ext Cet Arc Hub Fac Upp Upp War Pro Fac Was Fac Upp Slots Evolved 12 | . . . . . 4 2 . . . . 2 . . . . 2 . . . . 2 . . . Power . | . . . . . . . . . . . . . . . . . . . . . . . . . Propulsion 3 | . . . . . 2 . . . . . . . . . . . . . . . 1 . . . Utility 9 | . . . . . 2 2 . . . . 2 . . . . 2 . . . . 1 . . . Weapon . | . . . . . . . . . . . . . . . . . . . . . . . . . Parts Attached 265 | 3 8 2 . 6 26 26 9 6 6 12 18 44 9 2 6 13 . 4 6 . 20 5 28 6 Power 24 | 1 3 . . 1 2 5 . . . 1 2 2 . 2 . . . . . . 1 2 2 . Engine 8 | 1 3 . . . . 3 . . . 1 . . . . . . . . . . . . . . Core 14 | . . . . 1 2 2 . . . . 2 2 . 2 . . . . . . 1 . 2 . Reactor 2 | . . . . . . . . . . . . . . . . . . . . . . 2 . . Propulsion 60 | . . . . 5 10 9 . . . 6 4 5 1 . 2 . . . 3 . 6 . 7 2 Treads . | . . . . . . . . . . . . . . . . . . . . . . . . . Leg 54 | . . . . 5 5 9 . . . 6 3 5 1 . 2 . . . 3 . 6 . 7 2 Wheel 5 | . . . . . 4 . . . . . 1 . . . . . . . . . . . . . Hover 1 | . . . . . 1 . . . . . . . . . . . . . . . . . . . Flight . | . . . . . . . . . . . . . . . . . . . . . . . . . Utility 117 | 1 1 . . . 4 11 4 . 6 4 8 31 8 . 2 11 . 1 1 . 6 1 17 . Device 54 | 1 . . . . 1 2 2 . 3 3 6 19 1 . . 4 . 1 . . 3 1 7 . Storage 3 | . 1 . . . . 2 . . . . . . . . . . . . . . . . . . Processor 7 | . . . . . 1 . . . . 1 . 2 . . . 1 . . . . . . 2 . Hackware 2 | . . . . . . . . . . . . 1 . . . . . . . . . . 1 . Protection 51 | . . . . . 2 7 2 . 3 . 2 9 7 . 2 6 . . 1 . 3 . 7 . Artifact . | . . . . . . . . . . . . . . . . . . . . . . . . . Weapon 64 | 1 4 2 . . 10 1 5 6 . 1 4 6 . . 2 2 . 3 2 . 7 2 2 4 Energy Gun . | . . . . . . . . . . . . . . . . . . . . . . . . . Energy Cannon . | . . . . . . . . . . . . . . . . . . . . . . . . . Ballistic Gun 11 | 1 4 1 . . 5 . . . . . . . . . . . . . . . . . . . Ballistic Cannon . | . . . . . . . . . . . . . . . . . . . . . . . . . Launcher 15 | . . 1 . . 2 . 3 2 . . 2 2 . . 1 1 . 1 . . . . . . Special Weapon 8 | . . . . . . . . . . . . . . . . . . . 1 . 3 . 1 3 Impact Weapon 14 | . . . . . 2 1 2 3 . 1 1 . . . . . . . . . 4 . . . Slashing Weapon 12 | . . . . . 1 . . 1 . . 1 4 . . 1 1 . 2 1 . . . . . Piercing Weapon 4 | . . . . . . . . . . . . . . . . . . . . . . 2 1 1 Special Melee Weapon . | . . . . . . . . . . . . . . . . . . . . . . . . . Unidentified Prototypes 9 | . 1 . . . 2 1 1 . . . . . 1 . 1 . . . 1 . . . 1 . Parts Lost 65 | . . . . . 9 2 . 2 . 14 4 1 2 . . . . . . . 4 . 25 2 Power 6 | . . . . . 2 . . . . 1 1 . . . . . . . . . . . 2 . Propulsion 25 | . . . . . 6 . . . . 7 1 . 1 . . . . . . . . . 9 1 Utility 28 | . . . . . . 2 . 1 . 5 1 1 1 . . . . . . . 3 . 13 1 Weapon 6 | . . . . . 1 . . 1 . 1 1 . . . . . . . . . 1 . 1 . Highest Loss Streak 15 | . . . . . 3 1 . 2 . 7 3 1 2 . . . . . . . 3 . 15 1 To Critical Strikes 2 | . . . . . . . . . . . . . 1 . . . . . . . . . 1 . Average Slot Usage (%) 93 | . 100 100 100 100 92 96 99 94 97 76 73 96 99 100 100 91 100 100 98 94 92 100 87 10 Engine 3 | . 14 14 14 12 . 3 7 7 7 7 1 . . . . . . . . . . . . . Core 3 | . . . . 1 8 3 . . . . 4 6 6 6 6 5 5 5 5 5 5 . 4 . Leg 25 | . 28 28 28 28 24 29 30 30 30 24 22 26 26 26 26 23 23 23 23 23 26 26 22 4 Device 12 | . 14 14 14 14 17 14 15 15 14 5 7 11 6 6 6 8 11 11 11 11 12 10 17 . Storage 7 | . 14 14 14 14 9 7 7 7 7 7 6 6 6 6 6 5 5 5 5 5 5 5 4 . Processor 11 | . . . . . 6 7 7 7 7 11 13 19 20 20 20 17 17 17 17 17 15 15 17 . Protection 10 | . . . . . 1 11 14 9 12 3 2 5 18 20 20 17 23 23 21 17 15 25 9 . Ballistic Gun 4 | . 28 27 28 28 13 . . . . . . . . . . . . . . . . . . . Impact Weapon 2 | . . . . . 3 6 6 6 7 12 6 . . . . . . . . . 3 . . . Slashing Weapon 6 | . . . . . . 7 7 7 7 1 4 11 13 13 9 10 11 10 11 11 6 3 . . Naked Turns 1 | . . . . . . . . . . . . . . . . . . . . . . . 1 . Heaviest Build 131 | 14 24 24 24 24 33 75 72 72 72 72 67 67 80 80 80 88 88 89 95 95 107 129 131 8 Greatest Support 131 | 20 20 20 20 23 43 78 72 72 72 72 77 77 81 81 96 96 96 96 96 96 131 131 131 20 Greatest Overweight (x) 6 | . 1 1 1 1 5 . . . . 1 6 . 1 . . . . . . . . . 2 2 Average Overweight (x) . | . . 1 1 . . . . . . . 1 . . . . . . . . . . . . . Largest Inventory Capacity 20 | 8 10 10 10 10 10 20 20 20 20 20 20 20 20 20 20 20 20 20 20 20 20 20 20 5 Average Capacity 17 | 8 9 10 10 10 10 18 20 20 20 20 20 20 20 20 20 20 20 20 20 20 20 20 18 5 Most Carried 20 | 6 10 10 10 10 10 20 20 20 20 20 19 20 20 20 20 20 19 20 20 20 20 20 20 4 Average Carried 16 | 4 8 10 9 9 8 14 19 19 19 13 16 19 19 20 19 19 16 19 19 20 19 19 17 3 Final Capacity 20 | 8 10 10 10 10 10 20 20 20 20 20 20 20 20 20 20 20 20 20 20 20 20 20 5 5 Final Carried 20 | 5 10 10 10 10 9 20 20 20 20 11 17 19 20 20 20 16 19 20 20 20 18 20 4 3 Class Distribution -------------------- 32% | Mutant 28% | Scavenger-Assassin 13% | Assassin 7% | Scavenger-Mutant 6% | Commander-Mutant 6% | Commander-Assassin 3% | Scavenger-Skirmisher Dominant Class ---------------- Mutant | -10/Materials Mutant | -10/Mines Mutant | -10/Exiles Commander-Mutant | -9/Mines Scavenger-Skirmisher | -8/Materials Assassin | -7/Factory Mutant | -7/Lower Caves Mutant | -7/Lower Caves Mutant | -7/Zion Mutant | -6/Proximity Caves Mutant | -6/Factory Commander-Assassin | -6/Extension Commander-Mutant | -6/Cetus Commander-Mutant | -6/Archives Mutant | -6/Hub_04(d) Scavenger-Assassin | -5/Factory Scavenger-Assassin | -5/Upper Caves Scavenger-Assassin | -5/Upper Caves Scavenger-Assassin | -5/Warlord Scavenger-Assassin | -4/Proximity Caves Scavenger-Assassin | -4/Factory Scavenger-Assassin | -4/Waste Scavenger-Mutant | -4/Factory Mutant | -4/Upper Caves Resources | -11 -10 -10 -10 -9 -8 -7 -7 -7 -7 -6 -6 -6 -6 -6 -6 -5 -5 -5 -5 -4 -4 -4 -4 -4 ----------- Run | Scr Mat Min Exi Min Mat Fac Low Low Zio Pro Fac Ext Cet Arc Hub Fac Upp Upp War Pro Fac Was Fac Upp Matter Collected 5869 | 258 202 39 . 150 600 297 320 102 82 432 204 1547 240 20 90 411 112 86 149 . 190 65 208 65 Remotely . | . . . . . . . . . . . . . . . . . . . . . . . . . Salvage Created 7846 | 89 234 19 . 162 944 1360 154 160 . 252 416 890 148 112 276 413 27 233 77 . 1019 282 579 . Parts 340 | 4 14 5 . 13 46 60 5 7 . 3 24 22 4 10 17 18 . 5 . . 43 1 39 . Haulers Intercepted 13 | . 2 . . . 3 6 . . . . . . . . . 1 . . . . 1 . . . Recyclers Shooed 10 | 1 1 1 . . 1 1 . . . . . 1 . . . 3 . . . . . . 1 . Parts Field Recycled . | . . . . . . . . . . . . . . . . . . . . . . . . . Retrieved Matter . | . . . . . . . . . . . . . . . . . . . . . . . . . Parts Self-Destructed 34 | . . . . . . . 3 14 . . . . . . . . . 3 . . . . . 14 Prevented 5 | . . . . . . . . . . 3 . . . . . . . . . . . . . 2 Kills | -11 -10 -10 -10 -9 -8 -7 -7 -7 -7 -6 -6 -6 -6 -6 -6 -5 -5 -5 -5 -4 -4 -4 -4 -4 ------- Run | Scr Mat Min Exi Min Mat Fac Low Low Zio Pro Fac Ext Cet Arc Hub Fac Upp Upp War Pro Fac Was Fac Upp Combat Hostiles Destroyed 105 | . 5 3 . 4 14 9 6 4 . 2 9 6 3 1 . 3 . 6 1 . 20 . 9 . Melee 40 | . . . . . 1 9 . 3 . . 1 4 3 1 . . . 2 1 . 9 . 6 . Guns 15 | . 5 . . 4 6 . . . . . . . . . . . . . . . . . . . Cannons 2 | . . . . . . . . . . . . . . . . . . . . . 2 . . . AOE 45 | . . 3 . . 6 . 6 1 . . 8 2 . . . 3 . 4 . . 9 . 3 . Classes Destroyed 19 | 2 4 . . 1 5 2 1 . . 1 . . . . . . . . . . 1 . 2 . Worker 15 | . . . . . 2 4 . . . . 2 . . . 1 2 . . . . . . 4 . Builder 11 | . . . . 1 2 . . . . . 2 1 . . 2 1 . . . . 1 . 1 . Tunneler 4 | 1 . . . . 1 1 . . . . . . . . . . . . . . . . 1 . Hauler 14 | . 2 . . . 3 6 . . . . 1 . . . . 1 . . . . 1 . . . Recycler 14 | 1 . . . . 2 6 . . . . . 3 . . . 1 . . . . 1 . . . Mechanic 2 | . . . . . . 1 . . . . 1 . . . . . . . . . . . . . Operator 4 | . 1 . . . . . . . . . . . . 1 . . . . . . 1 . 1 . Watcher 10 | . . . . . 2 3 . . . . 3 . . . . 1 . . . . 1 . . . Swarmer 29 | . 3 3 . . 3 3 6 1 . . 4 . . . . . . 2 . . 4 . . . Grunt 32 | . 2 . . 4 4 . . 1 . . 4 3 1 . . 3 . 2 . . 6 . 2 . Brawler 1 | . . . . . . . . . . . . . . . . . . . . . . . 1 . Duelist 3 | . . . . . 1 . . 1 . . . . . . . . . . . . . . 1 . Sentry 13 | . . . . . 5 1 . . . . 1 1 . 1 . . . 1 . . 3 . . . Specialist 2 | . . . . . . . . . . . . . . . . . . . . . 2 . . . Hunter 8 | . . . . . 1 1 . . . . . 2 . . . . . . 1 . 2 . 1 . Programmer 13 | . . . . . . 4 . 1 . 1 . . . . . . . 1 . . 3 . 3 . Heavy 1 | . . . . . . . . . . . . . . . . . . . . . . . 1 . Behemoth 1 | . . . . . . . . . . 1 . . . . . . . . . . . . . . Cetus Guard 2 | . . . . . . . . . . . . . 2 . . . . . . . . . . . Enhanced Grunt 3 | . . . . . . . . . . . . . . . 3 . . . . . . . . . Decomposer 1 | . . . . . . . 1 . . . . . . . . . . . . . . . . . Samaritan 2 | . . . . . . . 1 . . 1 . . . . . . . . . . . . . . Best Kill Streak 9 | 1 3 3 . 2 5 3 3 1 . 1 5 2 1 1 2 3 . 5 1 . 9 . 6 . Combat Bots Only 7 | . 3 3 . 2 3 2 3 1 . 1 5 2 1 1 . 3 . 5 1 . 7 . 4 . Max Kills in Single Turn 4 | 1 1 3 . 1 2 1 2 1 . 1 2 1 1 1 2 2 . 2 1 . 4 . 2 . Gunslinging . | . . . . . . . . . . . . . . . . . . . . . . . . . Exploded 3 | . . 3 . . 2 . 2 1 . . 2 1 . . . 2 . 2 . . 2 . 2 . Melee 1 | . . . . . 1 1 . 1 . . 1 1 1 1 . . . 1 1 . 1 . 1 . Uniques/NPCs Destroyed . | . . . . . . . . . . . . . . . . . . . . . . . . . Combat | -11 -10 -10 -10 -9 -8 -7 -7 -7 -7 -6 -6 -6 -6 -6 -6 -5 -5 -5 -5 -4 -4 -4 -4 -4 -------- Run | Scr Mat Min Exi Min Mat Fac Low Low Zio Pro Fac Ext Cet Arc Hub Fac Upp Upp War Pro Fac Was Fac Upp Damage Taken 15256 | . 227 65 . 291 1066 1004 142 669 . 1449 1158 608 391 236 132 59 . 530 207 . 1798 . 4568 656 Core 2129 | . 37 25 . 47 116 71 28 66 . 238 149 131 20 . . . . 20 19 . 82 . 700 380 Absorbed by Shields 121 | . . . . . . . . . . . . 57 14 . . . . . 50 . . . . . Regen/Repaired (Parts) 13 | . . . . . . 13 . . . . . . . . . . . . . . . . . . Core Remaining (%) 72 | 100 . . . 56 78 . . . . 42 . . . . 64 . . . . 96 . . . . Volleys Fired 175 | 7 28 3 . 15 59 . 6 2 . . 15 9 . . 3 6 . 8 . . 6 . 3 5 Largest 2 | 2 2 2 . 2 2 . 1 1 . . 1 1 . . 1 1 . 1 . . 1 . 1 1 Hottest 48 | 40 46 46 . 46 48 . 30 30 . . 30 30 . . 30 30 . 30 . . . . . . Shots Fired 273 | 14 56 5 . 30 105 . 6 2 . . 15 9 . . 3 6 . 8 . . 6 . 3 5 Gun 200 | 14 56 4 . 30 96 . . . . . . . . . . . . . . . . . . . Cannon . | . . . . . . . . . . . . . . . . . . . . . . . . . Launcher 59 | . . 1 . . 9 . 6 2 . . 15 9 . . 3 6 . 8 . . . . . . Special 14 | . . . . . . . . . . . . . . . . . . . . . 6 . 3 5 Kinetic 200 | 14 56 4 . 30 96 . . . . . . . . . . . . . . . . . . . Thermal . | . . . . . . . . . . . . . . . . . . . . . . . . . Explosive 68 | . . 1 . . 9 . 6 2 . . 15 9 . . 3 6 . 8 . . 6 . 3 . Electromagnetic . | . . . . . . . . . . . . . . . . . . . . . . . . . Robot Hit Streak 19 | 3 5 7 . 12 13 . 2 3 . . 10 14 . . . 19 . 3 . . 6 . 9 13 Robot Miss Streak 5 | 2 2 1 . 2 4 . 1 . . . 5 . . . . 1 . 4 . . . . . 1 Penetration Max . | . . . . . . . . . . . . . . . . . . . . . . . . . Secondary Targets 4 | . 1 . . 1 2 . . . . . . . . . . . . . . . . . . . Max Gunslinging Chain 1 | . 1 . . 1 1 . . . . . . . . . . . . . . . . . . . Shots Hit Robots 470 | 8 34 4 . 23 86 72 7 15 . 18 28 28 10 4 2 18 1 11 6 . 43 3 45 4 Core Hits 279 | 3 14 6 . 7 45 25 8 5 . 2 33 15 6 3 10 18 1 17 2 . 37 1 21 . Critical Kills 2 | . . . . . 1 1 . . . . . . . . . . . . . . . . . . Critical Parts Destroyed 13 | . . . . . 3 4 . . . 6 . . . . . . . . . . . . . . Critical Strikes 45 | . . . . . 4 9 . 4 . 7 . 3 3 . . . . 2 1 . 7 1 4 . Smash 16 | . . . . . 4 5 . . . 7 . . . . . . . . . . . . . . Sever 24 | . . . . . . 4 . 4 . . . 3 3 . . . . 2 1 . 7 . . . Impale 5 | . . . . . . . . . . . . . . . . . . . . . . 1 4 . Melee Attacks 402 | . . . . . 12 111 5 20 1 24 22 35 23 5 4 15 1 11 8 . 46 3 56 . Impact 60 | . . . . . 12 18 . 2 . 21 4 . . . . . . . . . 3 . . . Slashing 283 | . . . . . . 93 5 18 1 3 18 35 23 5 4 15 1 11 8 . 43 . . . Piercing 59 | . . . . . . . . . . . . . . . . . . . . . . 3 56 . Sneak Attacks 62 | . . . . . 2 24 4 . . 3 5 4 . 2 2 6 . . . . 3 . 7 . Combat Hostiles 2 | . . . . . . 2 . . . . . . . . . . . . . . . . . . Follow-up Attacks 35 | . . . . . . 12 . 1 . 2 . 3 1 1 . 1 . 1 2 . 3 . 8 . Damage Inflicted 24225 | 96 376 221 . 373 2116 3212 728 519 . 766 2096 1534 419 281 730 1487 89 1125 276 . 3856 131 3794 . Guns 1903 | 96 376 41 . 358 1032 . . . . . . . . . . . . . . . . . . . Cannons . | . . . . . . . . . . . . . . . . . . . . . . . . . Explosions 7973 | . . 178 . . 604 . 474 114 . . 1188 190 . . 541 611 . 668 . . 1965 . 1440 . Melee 13938 | . . . . . 480 3212 254 405 . 766 908 1344 419 281 189 876 89 457 276 . 1603 131 2248 . Ramming 17 | . . 2 . 15 . . . . . . . . . . . . . . . . . . . . Kinetic 1903 | 96 376 41 . 358 1032 . . . . . . . . . . . . . . . . . . . Thermal . | . . . . . . . . . . . . . . . . . . . . . . . . . Explosive 7627 | . . 178 . . 604 . 474 114 . . 1188 190 . . 195 611 . 668 . . 1965 . 1440 . Electromagnetic 346 | . . . . . . . . . . . . . . . 346 . . . . . . . . . Impact 2012 | . . . . . 480 635 . 45 . 576 169 . . . . . . . . . 107 . . . Slashing 9941 | . . . . . . 2577 254 360 . 190 739 1344 419 281 189 876 89 457 276 . 1784 . 106 . Piercing 2379 | . . . . . . . . . . . . . . . . . . . . . . 131 2248 . Highest Corruption 17 | . . . . . . 3 3 3 3 1 . . . . . . . 1 1 1 1 1 17 17 Average Corruption 2 | . . . . . . 2 3 3 3 1 . . . . . . . 1 1 1 1 1 3 17 Corruption Purged . | . . . . . . . . . . . . . . . . . . . . . . . . . Corruption Blocked . | . . . . . . . . . . . . . . . . . . . . . . . . . Effects 80 | . . . . . . 17 8 5 4 2 . . . . . . . 4 3 5 1 4 15 12 Message Errors 23 | . . . . . . 5 1 2 2 1 . . . . . . . 2 1 1 . . 3 5 Matter Fused 18 | . . . . . . 5 4 2 1 . . . . . . . . 1 . . 1 3 1 . Heat Flow Errors 8 | . . . . . . . 1 . . 1 . . . . . . . . 1 1 . . 4 . Energy Discharges 11 | . . . . . . 5 2 . . . . . . . . . . . . 1 . 1 1 1 Parts Rejected 1 | . . . . . . . . . . . . . . . . . . . . . . . 1 . Data Loss (minor) 9 | . . . . . . . . 1 1 . . . . . . . . . . 1 . . 4 2 Data Loss (major) 4 | . . . . . . 1 . . . . . . . . . . . 1 1 1 . . . . Alerts 3 | . . . . . . 1 . . . . . . . . . . . . . . . . . 2 Misdirections 3 | . . . . . . . . . . . . . . . . . . . . . . . 1 2 Overload Shots . | . . . . . . . . . . . . . . . . . . . . . . . . . Overflow Damage 2951 | . . . . . 273 518 105 11 . 371 124 81 . 33 94 204 . 94 14 . 167 . 862 . Projectiles 69 | . . . . . . . . . . . . . . . . . . . . . 44 . 25 . Explosions 215 | . . . . . 17 . 14 . . . 12 4 . . . 31 . 64 . . 16 . 57 . Melee 2667 | . . . . . 256 518 91 11 . 371 112 77 . 33 94 173 . 30 14 . 107 . 780 . Knockbacks 8 | . . . . . 1 1 . . . 3 1 . . . . . . . . . 2 . . . Impact 8 | . . . . . 1 1 . . . 3 1 . . . . . . . . . 2 . . . Kinetic . | . . . . . . . . . . . . . . . . . . . . . . . . . Secondary . | . . . . . . . . . . . . . . . . . . . . . . . . . Self-Inflicted Damage 668 | . . 45 . . 185 . 49 34 . . 161 23 . . 133 . . 38 . . . . . . Shots 18 | . . 1 . . 4 . 1 1 . . 7 1 . . 2 . . 1 . . . . . . Rammed . | . . . . . . . . . . . . . . . . . . . . . . . . . Targets Rammed 4 | . . 1 . 3 . . . . . . . . . . . . . . . . . . . . Kicked 4 | . . 1 . 3 . . . . . . . . . . . . . . . . . . . . Crushed . | . . . . . . . . . . . . . . . . . . . . . . . . . Highest Temperature 248 | . 18 . . 8 17 . 240 . . 243 24 . . . . . . 45 197 248 24 . 152 . Average Temperature 62 | . 9 . . 3 8 . 130 . . 126 11 . . . . . . 28 100 132 11 . 59 . Received Heat Transfer 2244 | . 63 . . 162 297 60 . 180 . 192 285 126 57 54 . 27 . 135 21 . 265 . 130 190 Siege Activations . | . . . . . . . . . . . . . . . . . . . . . . . . . Robots Corrupted . | . . . . . . . . . . . . . . . . . . . . . . . . . Combat Hostiles . | . . . . . . . . . . . . . . . . . . . . . . . . . Parts Fried 17 | . . . . . 7 3 . . . 2 1 . 1 . 3 . . . . . . . . . Impact Corruptions 35 | . . . . . 7 10 . 1 . 13 2 . . . . . . . . . 2 . . . Robots Melted . | . . . . . . . . . . . . . . . . . . . . . . . . . Combat Hostiles . | . . . . . . . . . . . . . . . . . . . . . . . . . Parts Melted 2 | . . . . . . 2 . . . . . . . . . . . . . . . . . . Heat Transferred . | . . . . . . . . . . . . . . . . . . . . . . . . . Parts Sabotaged . | . . . . . . . . . . . . . . . . . . . . . . . . . Parts Stolen . | . . . . . . . . . . . . . . . . . . . . . . . . . Parts Stripped . | . . . . . . . . . . . . . . . . . . . . . . . . . Power Chain Reactions . | . . . . . . . . . . . . . . . . . . . . . . . . . Missiles Intercepted . | . . . . . . . . . . . . . . . . . . . . . . . . . Alert | -11 -10 -10 -10 -9 -8 -7 -7 -7 -7 -6 -6 -6 -6 -6 -6 -5 -5 -5 -5 -4 -4 -4 -4 -4 ------- Run | Scr Mat Min Exi Min Mat Fac Low Low Zio Pro Fac Ext Cet Arc Hub Fac Upp Upp War Pro Fac Was Fac Upp Peak Influence 896 | 10 215 118 . 55 303 180 . . . . 153 261 529 430 265 349 . . . . 642 224 896 . Initial 224 | . 6 9 . . 21 98 . . . . 25 61 93 198 150 129 . . . . . 224 156 . Average 180 | 7 115 64 . 19 161 73 . . . . 75 121 292 378 175 234 . . . . 150 224 681 . Maximum Alert Level 3 | . 1 . . . 1 . . . . . . 1 2 2 1 1 . . . . 2 1 3 . Low Security (%) 74 | 100 78 100 . 100 65 100 . . . . 100 92 46 2 95 53 . . . . 80 . 2 . Level 1 13 | . 21 . . . 34 . . . . . . 7 31 29 4 46 . . . . 4 100 1 . Level 2 6 | . . . . . . . . . . . . . 21 67 . . . . . . 14 . 36 . Level 3 6 | . . . . . . . . . . . . . . . . . . . . . . . 60 . Level 4 . | . . . . . . . . . . . . . . . . . . . . . . . . . Level 5 . | . . . . . . . . . . . . . . . . . . . . . . . . . High Security . | . . . . . . . . . . . . . . . . . . . . . . . . . Max Security . | . . . . . . . . . . . . . . . . . . . . . . . . . Squads Dispatched 25 | . 1 . . . 1 4 . . . . 1 2 . . . . . . . . 6 . 10 . Investigation 2 | . . . . . . . . . . . . 2 . . . . . . . . . . . . Extermination 7 | . . . . . . 3 . . . . 1 . . . . . . . . . 1 . 2 . Reinforcement 10 | . 1 . . . 1 . . . . . . . . . . . . . . . 2 . 6 . Assault 2 | . . . . . . . . . . . . . . . . . . . . . . . 2 . Garrison 4 | . . . . . . 1 . . . . . . . . . . . . . . 3 . . . Intercept . | . . . . . . . . . . . . . . . . . . . . . . . . . Searches Triggered . | . . . . . . . . . . . . . . . . . . . . . . . . . Construction Impeded . | . . . . . . . . . . . . . . . . . . . . . . . . . Haulers Reinforced 1 | . . . . . . . . . . . . . . . . . . . . . . . 1 . Active Scanning Responses . | . . . . . . . . . . . . . . . . . . . . . . . . . Cargo Convoy Interrupts . | . . . . . . . . . . . . . . . . . . . . . . . . . Stealth | -11 -10 -10 -10 -9 -8 -7 -7 -7 -7 -6 -6 -6 -6 -6 -6 -5 -5 -5 -5 -4 -4 -4 -4 -4 --------- Run | Scr Mat Min Exi Min Mat Fac Low Low Zio Pro Fac Ext Cet Arc Hub Fac Upp Upp War Pro Fac Was Fac Upp Distress Signals 10 | . . . . . 1 1 . . . . . 1 1 . . . . . . . 3 . 3 . Communications Jammed . | . . . . . . . . . . . . . . . . . . . . . . . . . Distress Signals . | . . . . . . . . . . . . . . . . . . . . . . . . . Times Spotted 264 | . 10 3 . 7 22 22 6 7 . 2 13 20 21 5 . 5 . 6 32 . 24 . 38 21 Peak Tracking Total 16 | . 3 3 . 3 4 3 3 3 . 1 5 4 5 2 . 4 . 5 16 . 12 . 8 12 Tactical Retreats 11 | . 1 . . . . 1 . 3 . . . 1 . . . . . . . . 1 . 3 1 Traps | -11 -10 -10 -10 -9 -8 -7 -7 -7 -7 -6 -6 -6 -6 -6 -6 -5 -5 -5 -5 -4 -4 -4 -4 -4 ------- Run | Scr Mat Min Exi Min Mat Fac Low Low Zio Pro Fac Ext Cet Arc Hub Fac Upp Upp War Pro Fac Was Fac Upp Traps Triggered 3 | . . . . . . 1 . . . . . 1 . . . . . . . . 1 . . . Indirectly . | . . . . . . . . . . . . . . . . . . . . . . . . . Trap Hack Attempts . | . . . . . . . . . . . . . . . . . . . . . . . . . Triggered . | . . . . . . . . . . . . . . . . . . . . . . . . . Disarmed . | . . . . . . . . . . . . . . . . . . . . . . . . . Reprogrammed . | . . . . . . . . . . . . . . . . . . . . . . . . . Reused . | . . . . . . . . . . . . . . . . . . . . . . . . . Traps Extracted . | . . . . . . . . . . . . . . . . . . . . . . . . . Installed . | . . . . . . . . . . . . . . . . . . . . . . . . . Triggered 14 | . . . . . . . . . . . . 1 . . . . . . 12 . . . . 1 Machines | -11 -10 -10 -10 -9 -8 -7 -7 -7 -7 -6 -6 -6 -6 -6 -6 -5 -5 -5 -5 -4 -4 -4 -4 -4 ---------- Run | Scr Mat Min Exi Min Mat Fac Low Low Zio Pro Fac Ext Cet Arc Hub Fac Upp Upp War Pro Fac Was Fac Upp Machines Disabled 13 | . . 1 . . 2 . . . . . . . 2 1 1 . . . . . . . 6 . Max in Single Turn 1 | . . 1 . . 1 . . . . . . . . . 1 . . . . . . . . . Garrison Access 1 | . . . . . . . . . . . 1 . . . . . . . . . . . . . Network Hub 1 | . . . . . . . . . . . . . . . 1 . . . . . . . . . Machines Sabotaged . | . . . . . . . . . . . . . . . . . . . . . . . . . Garrisons Compromised . | . . . . . . . . . . . . . . . . . . . . . . . . . Overloaded Fab Kills . | . . . . . . . . . . . . . . . . . . . . . . . . . Hacking | -11 -10 -10 -10 -9 -8 -7 -7 -7 -7 -6 -6 -6 -6 -6 -6 -5 -5 -5 -5 -4 -4 -4 -4 -4 --------- Run | Scr Mat Min Exi Min Mat Fac Low Low Zio Pro Fac Ext Cet Arc Hub Fac Upp Upp War Pro Fac Was Fac Upp Machines Accessed 56 | . 3 . 2 1 8 7 1 . . . 5 15 2 . . 2 2 1 2 . 1 . 4 . Terminals 35 | . 3 . . . 7 3 . . . . 2 14 2 . . 1 1 . . . . . 2 . Fabricators 3 | . . . . . . . . . . . 1 . . . . . . . . . . . 2 . Repair Stations 3 | . . . . . . 2 . . . . . . . . . 1 . . . . . . . . Recycling Units 3 | . . . . . 1 . . . . . 1 1 . . . . . . . . . . . . Scanalyzers . | . . . . . . . . . . . . . . . . . . . . . . . . . Garrison Access 4 | . . . . . . 2 . . . . 1 . . . . . . . . . 1 . . . Total Hacks 141 | . 13 . 2 1 29 13 1 . . . 12 43 3 . . 5 2 1 3 . 4 . 9 . Successful 68 | . 7 . 2 1 13 4 1 . . . 8 18 1 . . 1 2 1 3 . . . 6 . Failed 73 | . 6 . . . 16 9 . . . . 4 25 2 . . 4 . . . . 4 . 3 . Catastrophic 16 | . . . . . . 3 . . . . 1 8 1 . . 2 . . . . . . 1 . Database Lockouts . | . . . . . . . . . . . . . . . . . . . . . . . . . Manual 40 | . 5 . 1 . 8 2 . . . . 2 14 2 . . 2 . . . . . . 4 . Terminals 105 | . 13 . . . 25 5 . . . . 6 42 3 . . 3 1 . . . . . 7 . Fabricators 4 | . . . . . . . . . . . 2 . . . . . . . . . . . 2 . Repair Stations 6 | . . . . . . 4 . . . . . . . . . 2 . . . . . . . . Recycling Units 7 | . . . . . 4 . . . . . 2 1 . . . . . . . . . . . . Scanalyzers . | . . . . . . . . . . . . . . . . . . . . . . . . . Garrison Access 10 | . . . . . . 4 . . . . 2 . . . . . . . . . 4 . . . Terminal Hacks 49 | . 6 . 2 1 9 1 1 . . . 4 14 1 . . 1 2 1 3 . . . 3 . Record 6 | . . . 1 . . . . . . . . . 1 . . . 1 . 3 . . . . . Robot Analysis 2 | . . . . . 2 . . . . . . . . . . . . . . . . . . . Prototype ID Bank 7 | . 1 . . . 3 . . . . . 1 1 . . . . . . . . . . 1 . Open Door 10 | . . . . 1 . . 1 . . . 1 5 . . . . 1 1 . . . . . . Branch Access Points 3 | . 1 . . . . . . . . . . 1 . . . . . . . . . . 1 . Emergency Access Points 2 | . . . . . 1 . . . . . 1 . . . . . . . . . . . . . Alert Level 5 | . 1 . . . . 1 . . . . . 1 . . . 1 . . . . . . 1 . Unreport Threat 1 | . . . . . . . . . . . . 1 . . . . . . . . . . . . Locate Traps 2 | . 1 . . . . . . . . . . 1 . . . . . . . . . . . . Patrol Status 1 | . . . . . 1 . . . . . . . . . . . . . . . . . . . Recall Reinforcements 1 | . 1 . . . . . . . . . . . . . . . . . . . . . . . Zone Layout 8 | . 1 . . . 2 . . . . . 1 4 . . . . . . . . . . . . EX-Prototype ID Bank 1 | . . . 1 . . . . . . . . . . . . . . . . . . . . . Fabricator Hacks 3 | . . . . . . . . . . . 1 . . . . . . . . . . . 2 . Network Status 1 | . . . . . . . . . . . . . . . . . . . . . . . 1 . Build 2 | . . . . . . . . . . . 1 . . . . . . . . . . . 1 . Repair Station Hacks 2 | . . . . . . 2 . . . . . . . . . . . . . . . . . . Scan Component 1 | . . . . . . 1 . . . . . . . . . . . . . . . . . . Repair 1 | . . . . . . 1 . . . . . . . . . . . . . . . . . . Recycling Unit Hacks 4 | . . . . . 2 . . . . . 1 1 . . . . . . . . . . . . Retrieve Components 4 | . . . . . 2 . . . . . 1 1 . . . . . . . . . . . . Scanalyzer . | . . . . . . . . . . . . . . . . . . . . . . . . . Garrison Access Hacks 1 | . . . . . . . . . . . 1 . . . . . . . . . . . . . Seal Access 1 | . . . . . . . . . . . 1 . . . . . . . . . . . . . Unauthorized Hacks 9 | . 1 . . . 2 1 . . . . 1 3 . . . . . . . . . . 1 . Terminals 8 | . 1 . . . 2 . . . . . 1 3 . . . . . . . . . . 1 . Assimilate 1 | . 1 . . . . . . . . . . . . . . . . . . . . . . . Botnet 7 | . . . . . 2 . . . . . 1 3 . . . . . . . . . . 1 . Fabricators . | . . . . . . . . . . . . . . . . . . . . . . . . . Repair Stations 1 | . . . . . . 1 . . . . . . . . . . . . . . . . . . Mechanics 1 | . . . . . . 1 . . . . . . . . . . . . . . . . . . Recycling Units . | . . . . . . . . . . . . . . . . . . . . . . . . . Scanalyzers . | . . . . . . . . . . . . . . . . . . . . . . . . . Garrison Access . | . . . . . . . . . . . . . . . . . . . . . . . . . Data Cores Recovered . | . . . . . . . . . . . . . . . . . . . . . . . . . Used . | . . . . . . . . . . . . . . . . . . . . . . . . . Hacking Detections 37 | . 3 . . . 7 5 . . . . 3 11 2 . . 2 . . . . 1 . 3 . Full Trace Events 2 | . . . . . . . . . . . . 2 . . . . . . . . . . . . Feedback Events . | . . . . . . . . . . . . . . . . . . . . . . . . . Feedback Blocked . | . . . . . . . . . . . . . . . . . . . . . . . . . Robot Schematics Acquired 4 | . . . . . . . . . 4 . . . . . . . . . . . . . . . Robots Built 1 | . . . . . . . . . . . 1 . . . . . . . . . . . . . Authchips . | . . . . . . . . . . . . . . . . . . . . . . . . . Time 152 | . . . . . . . . . . . 152 . . . . . . . . . . . . . Total Robot Build Rating 5 | . . . . . . . . . . . 5 . . . . . . . . . . . . . Part Schematics Acquired 15 | . . . . . . . . . 15 . . . . . . . . . . . . . . . Parts Built 1 | . . . . . . . . . . . . . . . . . . . . . . . 1 . Authchips . | . . . . . . . . . . . . . . . . . . . . . . . . . Time 58 | . . . . . . . . . . . . . . . . . . . . . . . 58 . Total Part Build Rating 7 | . . . . . . . . . . . . . . . . . . . . . . . 7 . Parts Repaired 1 | . . . . . . 1 . . . . . . . . . . . . . . . . . . Time 26 | . . . . . . 26 . . . . . . . . . . . . . . . . . . Parts Recycled . | . . . . . . . . . . . . . . . . . . . . . . . . . Recycled Matter . | . . . . . . . . . . . . . . . . . . . . . . . . . Retrieved Matter . | . . . . . . . . . . . . . . . . . . . . . . . . . Retrieved Components 14 | . . . . . 9 . . . . . 3 2 . . . . . . . . . . . . Parts Scanalyzed . | . . . . . . . . . . . . . . . . . . . . . . . . . Part Schematics Acquired . | . . . . . . . . . . . . . . . . . . . . . . . . . Parts Damaged . | . . . . . . . . . . . . . . . . . . . . . . . . . Bothacking | -11 -10 -10 -10 -9 -8 -7 -7 -7 -7 -6 -6 -6 -6 -6 -6 -5 -5 -5 -5 -4 -4 -4 -4 -4 ------------ Run | Scr Mat Min Exi Min Mat Fac Low Low Zio Pro Fac Ext Cet Arc Hub Fac Upp Upp War Pro Fac Was Fac Upp Used RIF Installer . | . . . . . . . . . . . . . . . . . . . . . . . . . Robots Hacked . | . . . . . . . . . . . . . . . . . . . . . . . . . Non-combat . | . . . . . . . . . . . . . . . . . . . . . . . . . Combat . | . . . . . . . . . . . . . . . . . . . . . . . . . Robot Hacks Applied . | . . . . . . . . . . . . . . . . . . . . . . . . . Relay Couplers Released . | . . . . . . . . . . . . . . . . . . . . . . . . . Fabnet Peak Effective % . | . . . . . . . . . . . . . . . . . . . . . . . . . Robots Rewired 18 | . . . . . . . . . . . . 13 . . . . . . 5 . . . . . Allies Hacked 3 | . . . . . . . . . . . . . . . . . . . 2 . . . 1 . Hacks Repelled . | . . . . . . . . . . . . . . . . . . . . . . . . . Allies | -11 -10 -10 -10 -9 -8 -7 -7 -7 -7 -6 -6 -6 -6 -6 -6 -5 -5 -5 -5 -4 -4 -4 -4 -4 -------- Run | Scr Mat Min Exi Min Mat Fac Low Low Zio Pro Fac Ext Cet Arc Hub Fac Upp Upp War Pro Fac Was Fac Upp Total Allies 63 | . 1 . . 5 . . . . . . 1 19 7 . . 1 . . 5 . . 20 . 4 Largest Group 20 | . 1 1 1 5 1 . . . . . 1 12 9 6 5 3 3 . 5 . . 20 20 2 Highest-Rated Group 845 | . 10 10 10 65 10 . . . . . 23 444 845 592 459 284 284 . 269 . . 736 736 116 Highest-Rated Ally 159 | . 10 10 10 31 10 . . . . . 23 159 159 126 96 99 99 . 68 . . 50 50 116 Total Orders 8 | . . . . . . . . . . . . 7 . . . . . . . . . . . 1 STAY 7 | . . . . . . . . . . . . 7 . . . . . . . . . . . . GUARD 1 | . . . . . . . . . . . . . . . . . . . . . . . . 1 Ally Attacks 390 | . . . . 8 . . . . . . . 82 114 26 . 11 2 . 32 . . . 94 21 Total Damage 13689 | . . . . 92 . . . . . . . 2149 4337 956 . 637 143 . 1205 . . . 3494 676 Kills 79 | . . . . 1 . . . . . . . 21 16 3 . 2 . . 7 . . . 23 6 Allies Corrupted 4 | . . . . . . . . . . . . . . . . . 1 . . . . . 2 1 Allies Melted 1 | . . . . . . . . . . . . . . . . . . . 1 . . . . . Field Lobotomies 4 | . . . . . . . . . . . . . . . . . . . . . . . . 4 Intel | -11 -10 -10 -10 -9 -8 -7 -7 -7 -7 -6 -6 -6 -6 -6 -6 -5 -5 -5 -5 -4 -4 -4 -4 -4 ------- Run | Scr Mat Min Exi Min Mat Fac Low Low Zio Pro Fac Ext Cet Arc Hub Fac Upp Upp War Pro Fac Was Fac Upp Robot Analysis Total 2 | . . . . . 2 . . . . . . . . . . . . . . . . . . . Derelict Logs Recovered 8 | . . . . 2 . . . . 2 . . . . . . . . 2 . 2 . . . . Drone Launches . | . . . . . . . . . . . . . . . . . . . . . . . . . Drone Recoveries . | . . . . . . . . . . . . . . . . . . . . . . . . . Exploration | -11 -10 -10 -10 -9 -8 -7 -7 -7 -7 -6 -6 -6 -6 -6 -6 -5 -5 -5 -5 -4 -4 -4 -4 -4 ------------- Run | Scr Mat Min Exi Min Mat Fac Low Low Zio Pro Fac Ext Cet Arc Hub Fac Upp Upp War Pro Fac Was Fac Upp Turns Passed 18973 | 84 565 491 524 943 1033 2211 625 445 1320 779 1010 1746 522 180 129 596 589 1456 913 335 667 396 1195 219 Spaces Moved 12558 | 48 282 251 276 483 600 1447 460 317 1088 473 617 1027 334 136 87 366 354 1175 668 270 381 306 891 221 Core 397 | . . . . . 2 . . . . . . . . . . . . . . . . . 177 218 Treads . | . . . . . . . . . . . . . . . . . . . . . . . . . Legs 11873 | 48 282 251 276 483 472 1447 460 317 1088 473 455 1027 334 136 87 366 354 1175 668 270 381 306 714 3 Wheels 288 | . . . . . 126 . . . . . 162 . . . . . . . . . . . . . Hover . | . . . . . . . . . . . . . . . . . . . . . . . . . Flight . | . . . . . . . . . . . . . . . . . . . . . . . . . Fastest Speed 50 | 120 120 190 190 120 86 120 120 120 120 120 122 120 120 120 120 120 120 120 120 120 120 120 50 50 Average Speed 126 | 120 153 190 190 179 114 126 120 120 120 144 136 120 120 120 120 120 120 120 120 120 120 120 109 54 Slowest Speed 300 | 120 190 190 190 190 300 130 120 120 120 200 196 125 190 120 120 120 120 120 120 120 120 120 260 150 Overloaded Moves . | . . . . . . . . . . . . . . . . . . . . . . . . . Propulsion Burnouts . | . . . . . . . . . . . . . . . . . . . . . . . . . Robots Hopped . | . . . . . . . . . . . . . . . . . . . . . . . . . Cave-ins Triggered 1 | . . . . . . . . . . . . . . . . . . . . . . . 1 . Exploration Rate (%) 51 | 4 48 63 70 85 50 32 47 55 84 62 16 67 73 90 6 5 66 75 61 56 8 95 23 34 Regions Visited 24 Branch Regions 16 Pre-discovered Areas 3 | . . . 1 1 . . . . . . . . . . . . . 1 . . . . . . Known Exits Taken 18 | . 1 . . . 1 1 1 1 1 1 1 1 1 1 1 1 1 1 1 1 . . 1 . Unknown Exits Taken 4 | 1 . 1 1 1 . . . . . . . . . . . . . . . . . . . . Scrap Searched 21 | . . 1 . 2 . . 2 3 3 1 . . . . . . 2 4 . 2 . . . 1 Spaces Dug 82 | . . . . . . 2 1 . . . . 62 . . 9 . . . . . 1 . 7 . Terrain Destroyed 642 | . . 8 . . 66 2 30 7 . . 50 96 . . 209 6 . 20 . . 110 . 38 . Melee 12 | . . . . . . 2 1 . . . . 1 . . . . . . . . 1 . 7 . Projectile . | . . . . . . . . . . . . . . . . . . . . . . . . . AOE 630 | . . 8 . . 66 . 29 7 . . 50 95 . . 209 6 . 20 . . 109 . 31 . Terrain Rammed . | . . . . . . . . . . . . . . . . . . . . . . . . . Walls Destroyed . | . . . . . . . . . . . . . . . . . . . . . . . . . Machines Disabled . | . . . . . . . . . . . . . . . . . . . . . . . . . Actions | -11 -10 -10 -10 -9 -8 -7 -7 -7 -7 -6 -6 -6 -6 -6 -6 -5 -5 -5 -5 -4 -4 -4 -4 -4 --------- Run | Scr Mat Min Exi Min Mat Fac Low Low Zio Pro Fac Ext Cet Arc Hub Fac Upp Upp War Pro Fac Was Fac Upp Total 14840 | 61 371 260 277 532 812 1680 522 350 1102 533 733 1488 426 146 108 497 516 1199 776 281 519 329 1012 310 Wait 991 | 1 22 2 . 14 94 76 28 5 3 27 53 147 53 4 . 93 159 3 25 12 64 8 23 75 Move 12534 | 47 281 250 275 483 599 1446 459 316 1087 472 616 1025 333 135 86 365 353 1174 667 269 381 305 889 221 Hop . | . . . . . . . . . . . . . . . . . . . . . . . . . Pick Up 108 | 1 16 1 1 3 8 19 6 2 . . 6 16 4 . 4 . 3 1 5 . 3 1 8 . Fast Attach 102 | 1 2 . . 1 16 10 1 . 4 1 10 23 6 . 2 7 . . 3 . 1 4 8 2 Attach 67 | . . . . . 6 3 3 1 1 11 3 8 3 . . 4 . . . . 6 . 14 4 Detach 21 | . . . . . 1 . . . 1 2 2 5 1 . . 2 . . . . . 3 1 3 Swap 96 | 2 6 2 . 5 4 13 5 5 1 . 5 13 . 2 4 2 . 4 3 . 13 1 6 . Drop 175 | 2 16 1 1 9 13 20 9 1 4 . 3 40 7 1 7 6 . 1 12 . 4 4 14 . Fire 175 | 7 28 3 . 15 59 . 6 2 . . 15 9 . . 3 6 . 8 . . 6 . 3 5 Melee 340 | . . . . . 12 93 5 18 1 20 20 31 19 4 2 12 1 8 5 . 41 3 45 . Ram . | . . . . . . . . . . . . . . . . . . . . . . . . . Kick 3 | . . 1 . 2 . . . . . . . . . . . . . . . . . . . . Crush . | . . . . . . . . . . . . . . . . . . . . . . . . . Escape Stasis 13 | . . . . . . . . . . . . 12 . . . . . . . . . . 1 . Rewire 215 | . . . . . . . . . . . . 159 . . . . . . 56 . . . . . Trap . | . . . . . . . . . . . . . . . . . . . . . . . . . Miscellaneous . | . . . . . . . . . . . . . . . . . . . . . . . . . Route ------- -11/Scrapyard -10/Materials (discovered 2 exits: [*Mat] / *Min) -10/Mines (discovered 3 exits: [*Mat x2] / *Exi) -10/Exiles (discovered 2 exits: *Min x2) -9/Mines -8/Materials -7/Factory (discovered 3 exits: *Fac x2 / *Low) -7/Lower Caves -7/Lower Caves (discovered 2 exits: *Fac / *Zio) -7/Zion -6/Proximity Caves -6/Factory (discovered 3 exits: Fac / Low / *Ext) -6/Extension (discovered 2 exits: *Fac / *Cet) -6/Cetus (discovered 2 exits: *Fac / *Arc) -6/Archives (discovered 3 exits: *Fac / *Hub x2) -6/Hub_04(d) -5/Factory -5/Upper Caves -5/Upper Caves -5/Warlord -4/Proximity Caves -4/Factory -4/Waste -4/Factory (discovered 3 exits: *Upp x2 / Arm) -4/Upper Caves History --------- Turn | Location | Event 11 | -11/Scrapyard | Discovered new exit (range 2) 85 | -11/Scrapyard | Entered Materials 318 | -10/Materials | Build established: Mutant 367 | -10/Materials | Identified exit to Mines 532 | -10/Materials | Discovered new exit (range 3) 650 | -10/Materials | Entered Mines 650 | -10/Mines | Accompanied by 1 ally 683 | -10/Mines | Met a Derelict bent on vengeance 694 | -10/Mines | Discovered new exit (range 9) 1074 | -10/Mines | Discovered new exit (range 15) 1131 | -10/Mines | Deemed a non-threat by the Exiles lab entrance 1131 | -10/Mines | Discovered new exit (range 5) 1141 | -10/Mines | Entered Exiles 1141 | -10/Exiles | Accompanied by 1 ally 1168 | -10/Exiles | Discovered new exit (range 15) 1193 | -10/Exiles | Met 8R-AWN 1223 | -10/Exiles | Met EX-HEX 1293 | -10/Exiles | Met EX-DEC 1345 | -10/Exiles | Learned location of Zion (-7) 1400 | -10/Exiles | Met EX-BIN 1426 | -10/Exiles | Aligned with FarCom system 1428 | -10/Exiles | Given EX-Vault access code 1472 | -10/Exiles | Opened EX-Vault 1486 | -10/Exiles | Found Field Lobotomy Kit 1529 | -10/Exiles | Warned to stay clear of 0b10 Research branches 1650 | -10/Exiles | Discovered new exit (range 10) 1665 | -10/Exiles | Left Exiles lab with Field Lobotomy Kit 1665 | -10/Exiles | Entered Mines 1665 | -9/Mines | Accompanied by 1 ally 1944 | -9/Mines | Assisted by bots powering up and referring to "LRC-V3" 2179 | -9/Mines | Learned Materials emergency access door positions 2241 | -9/Mines | Build established: Commander-Mutant 2311 | -9/Mines | Found the Drone Emporium 2598 | -9/Mines | Discovered new exit (range 6) 2608 | -9/Mines | Entered Materials 2608 | -8/Materials | Accompanied by 1 ally 2608 | -8/Materials | Evolved 4 slots: Propulsion x2, Utility x2 2920 | -8/Materials | Build established: Scavenger-Skirmisher 3221 | -8/Materials | Lost 3 parts (1p2n) 3595 | -8/Materials | Build established: Scavenger-Assassin 3616 | -8/Materials | Discovered new exit (range 16) 3633 | -8/Materials | Identified exit to Factory 3641 | -8/Materials | Entered Factory 3641 | -7/Factory | Evolved 2 slots: Utility x2 3714 | -7/Factory | Discovered new exit (range 5) 3718 | -7/Factory | Identified exit to Lower Caves 4334 | -7/Factory | Build established: Assassin 4456 | -7/Factory | Garrison activated, responded to threat 4888 | -7/Factory | Repaired Seismic Detector 5381 | -7/Factory | Discovered new exit (range 15) 5398 | -7/Factory | Identified exit to Factory 5531 | -7/Factory | Discovered exit to Factory (range 14) 5852 | -7/Factory | Entered Lower Caves 5977 | -7/Lower Caves | Found Prototype Device 5977 | -7/Lower Caves | Identified Heart of Steel 6145 | -7/Lower Caves | Build established: Mutant 6367 | -7/Lower Caves | Encountered a Warlord checkpoint 6467 | -7/Lower Caves | Discovered new exit (range 6) 6473 | -7/Lower Caves | Identified exit to Lower Caves 6477 | -7/Lower Caves | Entered another Lower Caves area 6579 | -7/Lower Caves | Discovered exit to Factory (range 15) 6913 | -7/Lower Caves | Discovered new exit (range 8) 6921 | -7/Lower Caves | Identified exit to Zion 6922 | -7/Lower Caves | Entered Zion 6966 | -7/Zion | Given A8's code to call for help 6994 | -7/Zion | Discovered new exit (range 13) 7007 | -7/Zion | Identified exit to Proximity Caves 7171 | -7/Zion | System corruption cleaned by Quarantine Array 7330 | -7/Zion | Learned 4 Factory zone layouts 7820 | -7/Zion | Learned 8 Factory zone layouts 8030 | -7/Zion | Rebuked by Imprinter 8242 | -7/Zion | Entered Proximity Caves 8314 | -6/Proximity Caves | Spotted B-75 Beast 8458 | -6/Proximity Caves | Lost 5 parts (1p1n2u1w) 8527 | -6/Proximity Caves | Core integrity fell below 50% 8546 | -6/Proximity Caves | Destroyed B-75 Beast 8557 | -6/Proximity Caves | Lost 7 parts (4n3u) 8925 | -6/Proximity Caves | Discovered exit to Factory (range 13) 9021 | -6/Proximity Caves | Entered Factory 9021 | -6/Factory | Evolved 2 slots: Utility x2 9022 | -6/Factory | Identified exit to Lower Caves 9022 | -6/Factory | Identified exit to Factory 9514 | -6/Factory | Fabricated A-15 Conveyor? 9795 | -6/Factory | Build established: Assassin 9875 | -6/Factory | Lost 3 parts (1n1u1w) 9961 | -6/Factory | Discovered new exit (range 10) 9970 | -6/Factory | Identified exit to Extension 10031 | -6/Factory | Entered Extension 10135 | -6/Extension | Rescued a captive Derelict 10136 | -6/Extension | Rescued a captive Derelict 10147 | -6/Extension | Identified exit to Cetus 10195 | -6/Extension | Rescued a captive Derelict 10419 | -6/Extension | Rescued a captive Derelict 10578 | -6/Extension | Rescued a captive Derelict 10762 | -6/Extension | Build established: Commander-Assassin 10977 | -6/Extension | Rescued A7 11757 | -6/Extension | Discovered exit to Factory (range 10) 11777 | -6/Extension | Entered Cetus 11777 | -6/Cetus | Accompanied by 4 allies (A7) 11782 | -6/Cetus | Acquired a Cetus Manufacturing Module code from A7 11788 | -6/Cetus | Spotted Cetus Guard 11789 | -6/Cetus | Spotted Cetus Guard 11791 | -6/Cetus | Spotted Cetus Guard 11797 | -6/Cetus | Allies destroyed Cetus Guard 11798 | -6/Cetus | Spotted Cetus Guard 11803 | -6/Cetus | Allies destroyed Cetus Guard 11812 | -6/Cetus | Allies destroyed Cetus Guard 11824 | -6/Cetus | Destroyed Cetus Guard 11890 | -6/Cetus | Started Cetus Manufacturing Module 11894 | -6/Cetus | Enhanced Grunt warped into view, answering call for help 11894 | -6/Cetus | Enhanced Grunt warped into view, answering call for help 11915 | -6/Cetus | Manufactured an Enhanced Grunt 11940 | -6/Cetus | Manufactured an Enhanced Grunt 11965 | -6/Cetus | Manufactured an Enhanced Grunt 11990 | -6/Cetus | Manufactured an Enhanced Grunt 12015 | -6/Cetus | Manufactured an Enhanced Grunt 12041 | -6/Cetus | Discovered new exit (range 21) 12066 | -6/Cetus | Identified exit to Archives 12093 | -6/Cetus | Spotted Cetus Guard 12093 | -6/Cetus | Spotted Cetus Guard 12093 | -6/Cetus | Spotted Cetus Guard 12093 | -6/Cetus | Spotted Cetus Guard 12095 | -6/Cetus | Discovered exit to Factory (range 21) 12115 | -6/Cetus | Allies destroyed Cetus Guard 12122 | -6/Cetus | Destroyed Cetus Guard 12123 | -6/Cetus | Allies destroyed Cetus Guard 12128 | -6/Cetus | Allies destroyed Cetus Guard 12129 | -6/Cetus | Met Revision 17 12266 | -6/Cetus | Build established: Commander-Mutant 12299 | -6/Cetus | Entered Archives 12299 | -6/Archives | Accompanied by 6 allies (A7) 12342 | -6/Archives | Discovered exit to Factory (range 17) 12349 | -6/Archives | Discovered new exit (range 15) 12386 | -6/Archives | Unable to access archive contents 12402 | -6/Archives | Unable to access archive contents 12429 | -6/Archives | Identified exit to Hub_04(d) 12454 | -6/Archives | Discovered exit to Hub_04(d) (range 15) 12479 | -6/Archives | Entered Hub_04(d) 12479 | -6/Hub_04(d) | Accompanied by 5 allies 12479 | -6/Hub_04(d) | Discovered exit to Factory (range 10) 12602 | -6/Hub_04(d) | Network Hub disabled 12608 | -6/Hub_04(d) | Entered Factory 12608 | -5/Factory | Accompanied by 2 allies 12608 | -5/Factory | Evolved 2 slots: Utility x2 12827 | -5/Factory | Discovered new exit (range 22) 12867 | -5/Factory | Build established: Scavenger-Mutant 12883 | -5/Factory | Identified exit to Upper Caves 13113 | -5/Factory | Heart of Steel transformed into Warbot 13196 | -5/Factory | Build established: Scavenger-Assassin 13204 | -5/Factory | Entered Upper Caves 13204 | -5/Upper Caves | Accompanied by 3 allies (Warbot) 13778 | -5/Upper Caves | Discovered new exit (range 13) 13791 | -5/Upper Caves | Identified exit to Upper Caves 13793 | -5/Upper Caves | Entered another Upper Caves area 13797 | -5/Upper Caves | Spotted B-75 Beast 13813 | -5/Upper Caves | Learned location of Armory (-4) 14879 | -5/Upper Caves | Learned Factory garrison access intel 15167 | -5/Upper Caves | Attracted the attention of an 0b10 checkpoint 15206 | -5/Upper Caves | Discovered new exit (range 7) 15214 | -5/Upper Caves | Identified exit to Warlord 15249 | -5/Upper Caves | Entered Warlord 15329 | -5/Warlord | Discovered new exit (range 8) 15336 | -5/Warlord | Identified exit to Proximity Caves 15403 | -5/Warlord | System corruption cleaned by Quarantine Array 15525 | -5/Warlord | Met Warlord 15539 | -5/Warlord | Warlord's base attacked by MAIN.C 15661 | -5/Warlord | Found Prototype Special Weapon 15661 | -5/Warlord | Identified RU-N14's Throwing Claymores v3 15889 | -5/Warlord | Warlord forces counterattacked 15895 | -5/Warlord | P-70 Sage assimilated allied TM-UMJ(g) 15927 | -5/Warlord | Spotted B-75 Beast 15928 | -5/Warlord | Spotted B-86 Titan 15944 | -5/Warlord | Allies destroyed B-75 Beast 16009 | -5/Warlord | Spotted B-86 Titan 16039 | -5/Warlord | Spotted Striker 16039 | -5/Warlord | Spotted Executioner 16059 | -5/Warlord | P-80 Master assimilated allied Archangel 6a 16140 | -5/Warlord | Spotted Striker 16140 | -5/Warlord | Spotted Striker 16162 | -5/Warlord | Entered Proximity Caves 16297 | -4/Proximity Caves | Learned Research terminal intel 16466 | -4/Proximity Caves | Discovered new exit (range 22) 16482 | -4/Proximity Caves | Learned Research terminal intel 16496 | -4/Proximity Caves | Identified exit to Factory 16497 | -4/Proximity Caves | Entered Factory 16497 | -4/Factory | Evolved 2 slots: Propulsion x1, Utility x1 16498 | -4/Factory | Loaded intel: 4 garrison access locations 16944 | -4/Factory | Garrison activated, responded to threat 16966 | -4/Factory | Discovered new exit (range 21) 17130 | -4/Factory | Lost 3 parts (3u) 17148 | -4/Factory | Identified exit to Upper Caves 17152 | -4/Factory | Destroyed 7 combat bots 17164 | -4/Factory | Sucked down chute 17164 | -4/Factory | Entered Waste 17165 | -4/Waste | Joined by Warlord forces that had cleared the area 17169 | -4/Waste | Found Enh. Force Lance 17430 | -4/Waste | Discovered new exit (range 14) 17456 | -4/Waste | Found Enh. Force Lance 17527 | -4/Waste | Found Adv. Force Booster 17551 | -4/Waste | Identified exit to Factory 17560 | -4/Waste | Entered Factory 17560 | -4/Factory | Accompanied by 20 allies 17583 | -4/Factory | Found Imp. Powered Armor 17586 | -4/Factory | Found Imp. Powered Armor 17590 | -4/Factory | Found Imp. Powered Armor 17593 | -4/Factory | Found Imp. Powered Armor 17604 | -4/Factory | Found Imp. Powered Armor 17847 | -4/Factory | Identified exit to Armory 17880 | -4/Factory | Build established: Scavenger-Mutant 18128 | -4/Factory | Fabricated Adv. Datajack? 18194 | -4/Factory | Found Prototype Hackware 18352 | -4/Factory | First assault squad dispatched 18404 | -4/Factory | P-70 Sage assimilated allied FK-5RA(m) 18562 | -4/Factory | Lost 9 parts (4n5u) 18625 | -4/Factory | Crushed by falling debris 18626 | -4/Factory | System corruption reached 10% 18661 | -4/Factory | Core integrity fell below 50% 18661 | -4/Factory | Released all parts (4) 18662 | -4/Factory | Identified Exp. Hacking Suite 18666 | -4/Factory | Spotted B-86 Titan 18688 | -4/Factory | Lost 15 parts (2p5n7u1w) 18755 | -4/Factory | Entered Upper Caves 18761 | -4/Upper Caves | Spotted B-86 Titan 18762 | -4/Upper Caves | Assimilated B-86 Titan with FLK Orb 18913 | -4/Upper Caves | Assimilated S-27 Virus with FLK Orb 18916 | -4/Upper Caves | Assimilated L-61 Swordsman with FLK Orb 18920 | -4/Upper Caves | Attracted the attention of an 0b10 outpost 18923 | -4/Upper Caves | Core integrity fell below 20% 18924 | -4/Upper Caves | Assimilated Y-72 Warden with FLK Orb 18963 | -4/Upper Caves | Attracted the attention of an 0b10 checkpoint 18974 | -4/Upper Caves | Destroyed by S-27 Virus with Autogun Last Messages --------------- 18925_ Virus 7a system corrupted by crushing effect. 18926_ Warden 7a suffers critical hit (Burn). 18926_ Virus 7a system corrupted by crushing effect. 18927_ Virus 7a system terminally corrupted. 18929_ Warden 7a destroyed. 18933_ T0B8EGZVZCE9BA1 IFZQS20DK0F 18935_ Acquired 10 matter. 18935_ Critical hit (Burn: +37). 18951_ BCD5DXLTOT:ZKVMBRCQAITXK50J&P/W 18960_ Searching scrap... 18960_ Found Lrg. Storage Unit. 18960_ Found Matter Filter. 18960_ Found Myomer Leg. 18960_ Found Melee Analysis Suite. 18960_ Found 24 Matter. 18961_ Acquired Myomer Leg. 18963_ Y-64 Sentinel: "INTERCEPTING UNREGISTERED DERELICT." 18963_ Acquired 10 matter. 18963_ Flexi-carbon Leg destroyed. 18972_ Field Lobotomy Kit expended. Map ----- +----------------------------------------------------+ | ???????????????????????############# #????? | | ???????????????????????# ### #### #?? | | ???????????????????????# "" #?# #??## #? | | ???????????????????????# " """" #?# #????# ##? | | ???????????????????????# "" "" #?# #?????####?? | | ???????????????????????# """ #?# #??????????? | | ??????????????????????## """ " " #?# #??????????? | | ??????????????????????# "" " ### #??????????? | | ??????????????????????# "" #??????????? | | ??????????????????????# #??????????? | | ??????????????????????# ######??????????? | | ??????????????????????# #???????????????? | | ?????????##???????????## ##???????????????? | | ????????## ?????????# #####????????????????? | | ????????# ######## ##????????????????????? | | ????????# ! ##?????????????????????? | | ????????# !%! #??????????????????????? | | ????????# ####### #??????????????????????? | | ????? ????# #??????????????????????? | | ????? ## ???# ####???????????????????? | | ?????? ###??#? ??# #???????????????????? | | ?????? ???????# ?# ## #???????????????????? | | ????????????????? ## ## #???????????????????? | | ??????????????????????# s #???????????????????? | | ?????????? ### ss #???????????????????? | | ?????????? s@ #???????????????????? | | ?????????? s ##???????????????????? | | ??????????# ### ##### ###????????????????????? | | ?????????????????#?????# #??????????????????????? | | ???????????????????????# #??????????????????????? | | ???????????????????????# #??????????????????????? | | ??????????????????????? ??????????????????????? | | ??????????????????????? ??????????????????????? | | ??????????????????????? ??????????????????????? | | ?????????????????????? ##??????????????????????? | | ?????????????????????? #????????????????????????? | | ?????????????????????? #?????????????????????????? | | ??????????????????????#??????????????????????????? | | ?????????????????????????????????????????????????? | | ?????????????????????????????????????????????????? | | ?????????????????????????????????????????????????? | | ?????????????????????????????????????????????????? | | ?????????????????????????????????????????????????? | | ?????????????????????????????????????????????????? | | ?????????????????????????????????????????????????? | | ?????????????????????????????????????????????????? | | ?????????????????????????????????????????????????? | | ?????????????????????????????????????????????????? | | ?????????????????????????????????????????????????? | | ?????????????????????????????????????????????????? | +----------------------------------------------------+ Best States ------------- Heat Dissipation 43 Energy Generation 25 Energy Capacity 350 Matter Stores 300 Matter Capacity 300 Sight Range 22 Robot Scan Range 16 Terrain Scan Density 10 ECM Strength 1 Armor Coverage 1400 Resistance: KI 20 Phase Shifting 10 Evasion (%) 71 Melee Accuracy 14 Core Analysis 6 Force Boost 40 Offensive Hacking 16 Defensive Hacking 12 Item Schematics ----------------- Shock Absorption System | -7/Zion | Archive Imp. EM Pulse Cannon | -7/Zion | Archive Hpw. Shock Rifle | -7/Zion | Archive Mak. Sword | -7/Zion | Archive Fission Core | -7/Zion | Archive Hvy. Rocket Launcher | -7/Zion | Archive Power Sword | -7/Zion | Archive Imp. Focal Shield | -7/Zion | Archive Imp. Kinecellerator | -7/Zion | Archive Matter Filter | -7/Zion | Archive Adv. Signal Interpreter | -7/Zion | Archive Imp. Particle Charger | -7/Zion | Archive Gauss Cannon | -7/Zion | Archive Imp. Deuterium Engine | -7/Zion | Archive Power Amplifier | -7/Zion | Archive Robot Schematics ------------------ Y-54 Guardian | -7/Zion | Archive C-57 Dissector | -7/Zion | Archive B-48 Gladiator | -7/Zion | Archive M-28 Smith | -7/Zion | Archive Fabricated ------------ A-15 Conveyor | x1 | -6/Factory | Preloaded Adv. Datajack | x1 | -4/Factory | Preloaded Alien Tech Used ----------------- None Achievements -------------- Collateral Damage Generalissimo Help From High Places Challenges ------------ None Game ------ Seed SlugAlertModule Manual? 0 Play Time 03:33:09 Cumulative 119.9 hours Start 2022.12.19 @ 18:45:38 End 2022.12.19 @ 23:24:31 Sessions 5 Manual Loads 0 Difficulty Rogue Special Mode None Game No. 111 Rogue 111 Adventurer 0 Explorer 0 Win Type - Total 2 Types 0/0/1/1/0/0/0/0/0 Lore% 69 Gallery% 55 Achievement% 51 Wizard Run 0 Options --------- ASCII 0 Keyboard 0 Movement Numpad Keybinds 0 Fullscreen 2 Font 18/SmallcapsGlow Map View 76x50 Tactical HUD 1 Map Filters NONE Filters NONE Steam 1 RUN: d3debd63-067c-44e4-bc3e-0b62cd1fbafd